[Event "GrandPrix_29.05"]
[Site "Chess.com"]
[Date "2020.05.29"]
[Round "8"]
[White "Kezin_Roman"]
[Black "rasmussvane"]
[Result "1/2-1/2"]
[WhiteElo "2611"]
[BlackElo "2543"]
[TimeControl "600+2"]
[EndTime "13:09:00 PDT"]
[Termination "Game drawn by 50-move rule"]

1. d4 {[%clk 0:10:01.9]} 1... d5 {[%clk 0:10:00.3]} 2. c4 {[%clk 0:10:01.7]}
2... e6 {[%clk 0:10:01.3]} 3. Nf3 {[%clk 0:10:02.2]} 3... a6 {[%clk 0:10:02.3]}
4. g3 {[%clk 0:09:59.2]} 4... dxc4 {[%clk 0:10:02.6]} 5. Bg2 {[%clk 0:10:00.4]}
5... b5 {[%clk 0:10:04.1]} 6. Ne5 {[%clk 0:09:57]} 6... c6 {[%clk 0:10:05.4]} 7.
a4 {[%clk 0:09:55.8]} 7... Bb7 {[%clk 0:10:05.5]} 8. Nc3 {[%clk 0:09:54.5]} 8...
Qc8 {[%clk 0:10:00.4]} 9. O-O {[%clk 0:09:45.5]} 9... Nf6 {[%clk 0:09:54.1]} 10.
e4 {[%clk 0:07:55.2]} 10... Be7 {[%clk 0:09:49.3]} 11. d5 {[%clk 0:07:29.1]}
11... O-O {[%clk 0:06:53.9]} 12. Bg5 {[%clk 0:05:36]} 12... exd5 {[%clk
0:04:57.1]} 13. exd5 {[%clk 0:05:29]} 13... Rd8 {[%clk 0:04:57.3]} 14. Re1
{[%clk 0:04:15.8]} 14... cxd5 {[%clk 0:03:41.1]} 15. Ng4 {[%clk 0:03:01]} 15...
Qxg4 {[%clk 0:01:53.3]} 16. Qxg4 {[%clk 0:02:59.5]} 16... Nxg4 {[%clk
0:01:55.2]} 17. Bxe7 {[%clk 0:02:10.5]} 17... Rd7 {[%clk 0:01:52.2]} 18. axb5
{[%clk 0:02:03]} 18... f5 {[%clk 0:01:12.8]} 19. Rad1 {[%clk 0:01:43.2]} 19...
axb5 {[%clk 0:01:00.8]} 20. Nxd5 {[%clk 0:01:43.1]} 20... Nc6 {[%clk 0:00:56.5]}
21. Nb6 {[%clk 0:01:13.5]} 21... Rxd1 {[%clk 0:00:44.8]} 22. Rxd1 {[%clk
0:01:15.4]} 22... Nxe7 {[%clk 0:00:40.5]} 23. Nxa8 {[%clk 0:01:14]} 23... Bxg2
{[%clk 0:00:26.3]} 24. Kxg2 {[%clk 0:01:15.9]} 24... Ne5 {[%clk 0:00:27.8]} 25.
Rd8+ {[%clk 0:01:03.2]} 25... Kf7 {[%clk 0:00:26.3]} 26. Rb8 {[%clk 0:01:05.1]}
26... N7c6 {[%clk 0:00:08.3]} 27. Rxb5 {[%clk 0:01:04.6]} 27... Ke6 {[%clk
0:00:07.6]} 28. Nb6 {[%clk 0:00:48.4]} 28... g5 {[%clk 0:00:06]} 29. Rc5 {[%clk
0:00:18.6]} 29... Kd6 {[%clk 0:00:06.9]} 30. Rd5+ {[%clk 0:00:20]} 30... Ke6
{[%clk 0:00:08.2]} 31. Rd2 {[%clk 0:00:16.4]} 31... g4 {[%clk 0:00:09.2]} 32.
Rc2 {[%clk 0:00:14]} 32... Nd4 {[%clk 0:00:10.5]} 33. Rc3 {[%clk 0:00:15.1]}
33... Nb5 {[%clk 0:00:11.3]} 34. Re3 {[%clk 0:00:13.2]} 34... Kf6 {[%clk
0:00:05.6]} 35. Nd5+ {[%clk 0:00:13.2]} 35... Ke6 {[%clk 0:00:06.9]} 36. Nc3
{[%clk 0:00:12.9]} 36... Nd4 {[%clk 0:00:07.3]} 37. Ne2 {[%clk 0:00:13.7]} 37...
Nf3 {[%clk 0:00:05.1]} 38. Nf4+ {[%clk 0:00:14.9]} 38... Kd6 {[%clk 0:00:06.4]}
39. Ra3 {[%clk 0:00:15]} 39... Ne1+ {[%clk 0:00:06.3]} 40. Kf1 {[%clk
0:00:15.8]} 40... N1f3 {[%clk 0:00:07.8]} 41. h4 {[%clk 0:00:14.9]} 41... Kc5
{[%clk 0:00:05.9]} 42. Ra7 {[%clk 0:00:14.6]} 42... Nd3 {[%clk 0:00:06.5]} 43.
Rb7 {[%clk 0:00:07.6]} 43... Nxf4 {[%clk 0:00:03.6]} 44. gxf4 {[%clk 0:00:09.5]}
44... Nxh4 {[%clk 0:00:04.9]} 45. Rxh7 {[%clk 0:00:09.1]} 45... Nf3 {[%clk
0:00:06.1]} 46. Rf7 {[%clk 0:00:08.6]} 46... Nd4 {[%clk 0:00:07.3]} 47. Ke1
{[%clk 0:00:09.5]} 47... Kd5 {[%clk 0:00:08.1]} 48. Re7 {[%clk 0:00:07.8]} 48...
Ne6 {[%clk 0:00:08.7]} 49. Rf7 {[%clk 0:00:05]} 49... Ke4 {[%clk 0:00:10.1]} 50.
Kd2 {[%clk 0:00:05]} 50... Nxf4 {[%clk 0:00:10.9]} 51. Rc7 {[%clk 0:00:05.6]}
51... Kd4 {[%clk 0:00:11.5]} 52. Rd7+ {[%clk 0:00:05.9]} 52... Nd5 {[%clk
0:00:10.3]} 53. Rf7 {[%clk 0:00:06.5]} 53... Ke4 {[%clk 0:00:11]} 54. Rf8 {[%clk
0:00:05.9]} 54... f4 {[%clk 0:00:12]} 55. Ke2 {[%clk 0:00:05.3]} 55... c3 {[%clk
0:00:09.6]} 56. bxc3 {[%clk 0:00:05.6]} 56... Nxc3+ {[%clk 0:00:10.8]} 57. Kf1
{[%clk 0:00:07]} 57... Kf3 {[%clk 0:00:12.1]} 58. Ra8 {[%clk 0:00:07.3]} 58...
Nd5 {[%clk 0:00:11.8]} 59. Ra3+ {[%clk 0:00:08.9]} 59... Ke4 {[%clk 0:00:13.1]}
60. Ke2 {[%clk 0:00:10.6]} 60... f3+ {[%clk 0:00:10.3]} 61. Kf1 {[%clk
0:00:10.9]} 61... Nf4 {[%clk 0:00:11.1]} 62. Kg1 {[%clk 0:00:11.1]} 62... Nh3+
{[%clk 0:00:11.9]} 63. Kf1 {[%clk 0:00:12]} 63... Kf5 {[%clk 0:00:11.2]} 64.
Ra5+ {[%clk 0:00:11.4]} 64... Kf4 {[%clk 0:00:12.3]} 65. Ra4+ {[%clk 0:00:12.7]}
65... Kf5 {[%clk 0:00:13.4]} 66. Rb4 {[%clk 0:00:14.3]} 66... Nf4 {[%clk
0:00:14.3]} 67. Kg1 {[%clk 0:00:15.7]} 67... Nh3+ {[%clk 0:00:15.2]} 68. Kf1
{[%clk 0:00:16.6]} 68... Kg5 {[%clk 0:00:16.6]} 69. Rb8 {[%clk 0:00:15.5]} 69...
Nf4 {[%clk 0:00:17.2]} 70. Rg8+ {[%clk 0:00:15.6]} 70... Kf5 {[%clk 0:00:18.6]}
71. Rf8+ {[%clk 0:00:16.9]} 71... Ke5 {[%clk 0:00:19.3]} 72. Rh8 {[%clk
0:00:17.6]} 72... Nd3 {[%clk 0:00:17.8]} 73. Kg1 {[%clk 0:00:16]} 73... Kf4
{[%clk 0:00:15.3]} 74. Rd8 {[%clk 0:00:14.4]} 74... Nc1 {[%clk 0:00:15.8]} 75.
Kh2 {[%clk 0:00:14.6]} 75... Ne2 {[%clk 0:00:16.7]} 76. Rf8+ {[%clk 0:00:15.4]}
76... Ke4 {[%clk 0:00:17.3]} 77. Rf7 {[%clk 0:00:16]} 77... Ke5 {[%clk 0:00:18]}
78. Rf8 {[%clk 0:00:16.4]} 78... Ke6 {[%clk 0:00:16.2]} 79. Rg8 {[%clk
0:00:10.6]} 79... Kf5 {[%clk 0:00:17]} 80. Ra8 {[%clk 0:00:10.9]} 80... Ke4
{[%clk 0:00:16]} 81. Ra4+ {[%clk 0:00:11.8]} 81... Kf5 {[%clk 0:00:17.2]} 82.
Rb4 {[%clk 0:00:13.2]} 82... Kg5 {[%clk 0:00:17.9]} 83. Rc4 {[%clk 0:00:13.7]}
83... Kh4 {[%clk 0:00:18.2]} 84. Rc5 {[%clk 0:00:14.8]} 84... Nd4 {[%clk
0:00:15.7]} 85. Kg1 {[%clk 0:00:13.2]} 85... Ne6 {[%clk 0:00:12.6]} 86. Re5
{[%clk 0:00:12.6]} 86... Nf4 {[%clk 0:00:13.6]} 87. Re8 {[%clk 0:00:13.6]} 87...
Kg5 {[%clk 0:00:13.8]} 88. Kf1 {[%clk 0:00:13.5]} 88... Nh3 {[%clk 0:00:10.5]}
89. Ke1 {[%clk 0:00:14]} 89... Kf5 {[%clk 0:00:10.4]} 90. Ra8 {[%clk 0:00:15]}
90... Kg5 {[%clk 0:00:08]} 91. Re8 {[%clk 0:00:14.4]} 91... Kf5 {[%clk
0:00:08.7]} 92. Rd8 {[%clk 0:00:14.6]} 92... Ke5 {[%clk 0:00:09.4]} 93. Rd2
{[%clk 0:00:15.8]} 93... Ke4 {[%clk 0:00:10.4]} 94. Ra2 {[%clk 0:00:07.1]} 94...
Kf5 {[%clk 0:00:08.3]} 95. Kf1 {[%clk 0:00:08.5]} 95... Kg5 {[%clk 0:00:08.9]}
96. Rd2 {[%clk 0:00:08.5]} 96... Kf6 {[%clk 0:00:09.1]} 97. Ke1 {[%clk
0:00:09.6]} 97... Nf4 {[%clk 0:00:09.2]} 98. Kd1 {[%clk 0:00:09.5]} 98... Ke5
{[%clk 0:00:10.1]} 99. Rd8 {[%clk 0:00:08.5]} 99... Ke4 {[%clk 0:00:10.9]} 100.
Kd2 {[%clk 0:00:09.4]} 100... Ng2 {[%clk 0:00:10.9]} 101. Re8+ {[%clk
0:00:09.8]} 101... Kf4 {[%clk 0:00:11.6]} 102. Rf8+ {[%clk 0:00:11.1]} 102...
Ke5 {[%clk 0:00:07.6]} 103. Rg8 {[%clk 0:00:12.6]} 103... Kf4 {[%clk 0:00:08.3]}
104. Kd3 {[%clk 0:00:12.2]} 104... Ne1+ {[%clk 0:00:08.9]} 105. Kc3 {[%clk
0:00:13.5]} 105... Ng2 {[%clk 0:00:08.9]} 106. Kd4 {[%clk 0:00:14.6]} 106... Kf5
{[%clk 0:00:05.4]} 107. Rf8+ {[%clk 0:00:15.6]} 107... Kg5 {[%clk 0:00:06]} 108.
Ke4 {[%clk 0:00:17.4]} 108... Nh4 {[%clk 0:00:05.5]} 109. Rg8+ {[%clk
0:00:17.5]} 109... Kh5 {[%clk 0:00:06.8]} 110. Kf4 {[%clk 0:00:17.1]} 110...
Ng6+ {[%clk 0:00:08.1]} 1/2-1/2